[Event "44th Chess Olympiad Open 2022"]
[Site "Chennai"]
[Date "2022.08.06"]
[Round "8.20"]
[White "Adams, Michael"]
[Black "Dardha, Daniel"]
[Result "1/2-1/2"]
[WhiteElo "2696"]
[BlackElo "2575"]
[Annotator "TA"]
[PlyCount "135"]
[EventDate "2022.??.??"]
[TimeControl "60"]

{[%evp 15,135,32,37,28,27,32,39,28,80,81,72,40,53,41,42,42,33,39,27,42,38,39,
53,37,85,86,111,94,92,44,60,46,64,43,48,56,80,65,143,139,135,118,127,121,118,
109,217,211,214,203,316,301,316,299,334,196,189,182,166,156,169,157,141,116,
201,163,170,134,137,88,171,140,151,139,119,147,379,332,464,475,452,441,876,824,
1828,1559,12277,5491,12838,0,0,0,0,0,0,0,0,0,0,0,0,0,0,0,0,0,0,0,0,0,0,0,0,0,0,
0,0,0,0,0,0,0]} 1. e4 {[%emt 0:00:16]} e5 {[%emt 0:00:12]} 2. Nf3 {[%emt 0:00:
00]} Nc6 {[%emt 0:00:21]} 3. Bb5 {[%emt 0:00:14]} Nf6 {[%emt 0:01:00]} 4. d3 {
[%emt 0:01:20]} d6 {[%emt 0:00:13]} 5. O-O {[%emt 0:00:49]} a6 {[%emt 0:00:14]}
6. Bxc6+ {[%emt 0:01:15]} bxc6 {[%emt 0:00:06]} 7. d4 {[%emt 0:00:11]} exd4 {
[%emt 0:00:11]} 8. Nxd4 {[%emt 0:02:18]} c5 {[%emt 0:00:09]} 9. Nc6 {[%emt 0:
00:00] C79: Ruy Lopez: Steinitz-type lines with 3...a6 4 Ba4 Nf6 5 0-0 d6.} Qd7
{[%emt 0:00:08]} 10. Na5 {[%emt 0:00:03]} ({Of course not} 10. e5 Qxc6 11. exf6
gxf6 $15) 10... Qa4 {[%emt 0:00:10] 10...Qa4 is better than 10...Be7.} (10...
Nxe4 $2 11. Qd5 Ra7 12. Qxe4+ $18) 11. Bd2 {[%emt 0:03:55][%cal Yb1c3] White
is slightly better.} Bg4 {[%emt 0:02:32]} (11... Qxe4 $2 12. Re1 Qe6 13. Nc3
$18) ({Don't do} 11... Nxe4 12. Nc3 Qxa5 13. Re1 $16) (11... Be7 $11) 12. f3 {
[%emt 0:04:37]} Be6 {[%emt 0:01:18]} 13. c4 {[%emt 0:04:18] [#]} Qxd1 $146 {
[%emt 0:07:05]} ({Predecessor:} 13... Qd7 14. Nc3 c6 15. f4 Qc7 16. Qa4 Rc8 17.
Nd5 Nxd5 18. exd5 Bd7 19. Rae1+ Be7 20. Nxc6 Bxc6 21. dxc6 Qxc6 {1-0 (56) Hong,
A (2365)-Tang,A (2509) Philadelphia 2018}) 14. Rxd1 {[%emt 0:00:05]} Nd7 {
[%emt 0:02:12]} 15. Nc3 {[%emt 0:01:20] Pair of Knights!} Be7 {[%emt 0:06:25]}
16. Nd5 {[%emt 0:06:21]} Bxd5 {[%emt 0:02:41]} 17. cxd5 {[%emt 0:05:02]} O-O {
[%emt 0:08:55]} 18. g4 {[%emt 0:12:37]} Bf6 {[%emt 0:07:41]} 19. Rab1 {[%emt 0:
00:00]} Rab8 {[%emt 0:01:53]} (19... h5 $14) 20. b4 {[%emt 0:03:38]} Ne5 {
[%emt 0:14:42]} 21. Kg2 {[%emt 0:03:58]} g5 {[%emt 0:00:29]} 22. Be1 {[%emt 0:
00:00]} (22. bxc5 $16 dxc5 23. Be3) 22... cxb4 $1 $14 {[%emt 0:04:43]} 23. Bxb4
{[%emt 0:04:00]} Rb5 {[%emt 0:09:03]} 24. Rb3 {[%emt 0:07:32]} Rfb8 {[%emt 0:
00:00]} 25. Bd2 {[%emt 0:04:07]} Nd7 {[%emt 0:04:02] [#]} 26. Rdb1 $1 {[%emt 0:
00:00]} Kg7 {[%emt 0:02:00]} (26... R8b6 $14) 27. Nc6 $16 {[%emt 0:02:28]} Ra8
{[%emt 0:05:19]} 28. a4 {[%emt 0:04:08]} Rc5 {[%emt 0:02:06]} 29. Rc1 {[%emt 0:
00:00] Prevents Rc2.0x0.00207c46cb13dp-1022s more active pieces.} Rxc1 {
[%emt 0:01:42]} 30. Bxc1 {[%emt 0:00:01]} a5 {[%emt 0:00:49] [#]} (30... Nc5
$16 31. Ra3 Kg6) 31. Be3 $1 $18 {[%emt 0:02:26]} Ne5 {[%emt 0:01:07]} 32. Nxe5
{[%emt 0:04:37]} Bxe5 {[%emt 0:00:42]} (32... dxe5 {might work better.} 33. Kg3
h6) 33. Bxg5 {[%emt 0:01:15] Endgame KRB-KRB} Rc8 {[%emt 0:01:07]} 34. Be3 {
[%emt 0:02:30]} c5 {[%emt 0:01:08]} 35. dxc6 {[%emt 0:02:49]} (35. f4 $142 Bd4
36. Kf3) 35... Rxc6 {[%emt 0:00:04]} 36. f4 {[%emt 0:00:06]} Rc2+ {[%emt 0:00:
44]} 37. Kf1 {[%emt 0:00:32]} Bf6 {[%emt 0:01:35]} 38. g5 {[%emt 0:00:00]} Ba1
{[%emt 0:00:07]} 39. Rb5 {[%emt 0:03:14]} Rc4 {[%emt 0:00:53]} (39... Bc3 $16 {
was worth a try.}) 40. Rxa5 {[%emt 0:00:48]} Rxe4 {[%emt 0:00:00]} 41. Bd2 {
[%emt 0:31:50]} d5 {[%emt 0:35:11]} 42. Kf2 {[%emt 0:00:00]} ({Better is} 42.
h4) 42... Rc4 {[%emt 0:00:00]} (42... h6 $16 {keeps fighting.}) 43. Ke2 {
[%emt 0:00:00]} h6 {[%emt 0:00:00]} 44. h4 {[%emt 0:00:00]} hxg5 {[%emt 0:00:
00]} 45. hxg5 {[%emt 0:00:00]} Rc2 $2 {[%emt 0:00:00]} (45... f6 $16 46. f5 (
46. Rxd5 Rxa4 47. Kd3 fxg5 $14) 46... fxg5) 46. Kd3 {[%emt 0:00:00]} Ra2 {
[%emt 0:00:00]} 47. f5 {[%emt 0:00:00]} Ra3+ {[%emt 0:00:00]} 48. Kc2 {[%emt 0:
00:00]} Ra2+ {[%emt 0:00:00]} (48... d4 $142 49. Bb4 Rg3) 49. Kb1 {[%emt 0:00:
00]} Rxd2 {[%emt 0:00:00]} 50. Kxa1 {[%emt 0:00:00] KR-KR} f6 {[%emt 0:02:54]}
51. Ra7+ {[%emt 0:00:00]} Kg8 {[%emt 0:01:18]} 52. Ra8+ $2 {[%emt 0:00:00]} ({
White must play} 52. gxf6 $18 Rf2 53. a5 Rxf5 54. Kb2 Rxf6 55. Kc3) 52... Kg7
$11 {[%emt 0:00:09] The position is equal.} 53. gxf6+ {[%emt 0:00:00]} ({Not} 
53. Ra7+ Kg8 $18) 53... Kxf6 {[%emt 0:00:01]} 54. a5 {[%emt 0:00:00] Black
must now prevent a6.} Rc2 {[%emt 0:04:00]} 55. a6 {[%emt 0:05:26]} Rc7 {
[%emt 0:00:06]} 56. Kb2 {[%emt 0:00:50]} Kxf5 {[%emt 0:00:00]} 57. a7 {[%emt 0:
00:47] Hoping for Rf8+.} Rf7 {[%emt 0:00:16] Prevents Rf8.} 58. Kc3 {[%emt 0:
00:02]} d4+ {[%emt 0:00:25]} 59. Kxd4 {[%emt 0:00:10]} Rd7+ {[%emt 0:00:42]}
60. Kc5 {[%emt 0:00:05]} Rf7 {[%emt 0:00:04] Prevents Rf8.} 61. Kd6 {[%emt 0:
00:32]} Kf6 $1 {[%emt 0:00:10]} 62. Kd5 {[%emt 0:00:56]} Kf5 $1 {[%emt 0:00:08]
} 63. Kc5 {[%emt 0:00:07]} Kf4 {[%emt 0:00:53]} 64. Kc4 {[%emt 0:01:21]} Kf5 {
[%emt 0:00:18]} 65. Kd5 {[%emt 0:00:39]} Rd7+ {[%emt 0:00:00]} 66. Kc6 {
[%emt 0:00:21]} Rf7 {[%emt 0:00:05]} 67. Kd6 {[%emt 0:00:12]} Kf6 $1 {[%emt 0:
00:06]} 68. Kc5 {[%emt 0:00:38] Blacks defense is rewarded with a draw.
Weighted Error Value: White=0.16 (very precise) /Black=0.24 (precise)} 1/2-1/2

[Event "44th Chess Olympiad Open 2022"]
[Site "Chennai"]
[Date "2022.08.06"]
[Round "8.20"]
[White "Howell, David W L"]
[Black "Lenaerts, Lennert"]
[Result "1-0"]
[WhiteElo "2650"]
[BlackElo "2379"]
[Annotator "TA"]
[PlyCount "79"]
[EventDate "2022.??.??"]
[TimeControl "60"]

{[%evp 9,79,6,18,13,39,37,37,35,29,30,36,25,25,32,28,29,35,21,41,28,63,58,53,
34,44,31,70,74,60,61,75,60,57,36,67,38,25,30,37,37,83,85,137,116,153,116,108,
115,143,137,172,192,239,207,220,194,511,491,464,465,565,429,877,835,658,410,
29981,29982,29995,29996,29997,29998]} 1. d4 {[%emt 0:00:34]} d5 {[%emt 0:00:09]
} 2. c4 {[%emt 0:00:26]} c6 {[%emt 0:00:04]} 3. Nf3 {[%emt 0:00:28]} Nf6 {
[%emt 0:00:23]} 4. g3 {[%emt 0:00:19]} Bf5 {[%emt 0:02:58]} 5. Nc3 {[%emt 0:00:
00]} e6 {[%emt 0:00:34]} 6. Nh4 {[%emt 0:01:40] D11: Slav Defence: 3 Nf3
sidelines and 3...Nf6 4 e3 Bg4.} Be4 {[%emt 0:03:46]} 7. f3 {[%emt 0:00:11]}
Bg6 {[%emt 0:00:03]} 8. Qb3 {[%emt 0:00:13] White is slightly better.} Qb6 {
[%emt 0:00:07]} 9. Nxg6 {[%emt 0:17:55]} hxg6 {[%emt 0:00:09]} 10. e3 {[%emt 0:
00:00]} Nbd7 {[%emt 0:10:30] 10...Bd6 is not played anymore.} 11. Kf2 {[%emt 0:
00:00]} Qc7 {[%emt 0:07:02]} 12. Bd2 {[%emt 0:04:09][%cal Yc1d2,Yd2e1,Ye1f2]} (
12. cxd5 {keeps more tension.} cxd5 13. Kg2 Rc8 14. Bd2) 12... dxc4 {[%emt 0:
08:12]} 13. Bxc4 {[%emt 0:02:46] [#]} b5 $146 {[%emt 0:00:06]} ({Predecessor:} 
13... Rd8 14. Rad1 a6 15. a4 Be7 16. e4 b5 17. axb5 axb5 18. Be2 e5 19. dxe5
Nc5 {½-½ (38) Arnold,K (2240)-Schneider,H (2258) ICCF email 2018}) 14. Bd3 {
[%emt 0:15:40]} e5 {[%emt 0:11:21]} 15. Kg2 {[%emt 0:09:21]} Be7 {[%emt 0:09:
15]} 16. Be1 {[%emt 0:05:39]} exd4 {[%emt 0:09:19]} 17. exd4 {[%emt 0:00:16]}
Rd8 {[%emt 0:00:04]} 18. Bf2 {[%emt 0:01:33]} Nb6 {[%emt 0:00:00]} 19. a4 {
[%emt 0:04:43]} a6 {[%emt 0:02:26]} 20. axb5 {[%emt 0:02:48]} axb5 {[%emt 0:00:
58]} 21. Ra6 {[%emt 0:00:06]} Kf8 {[%emt 0:00:33]} 22. h4 {[%emt 0:00:00]} Nbd5
{[%emt 0:09:46]} 23. Nxd5 {[%emt 0:03:33]} Nxd5 {[%emt 0:00:12]} 24. Be4 {
[%emt 0:01:01]} Nb4 {[%emt 0:04:15]} (24... g5 $1 $14) 25. Raa1 $16 {[%emt 0:
02:28]} Qd6 {[%emt 0:00:21]} ({Black should try} 25... f5) 26. Ra7 {[%emt 0:00:
56] Black must now prevent Re1.} f5 {[%emt 0:02:29]} 27. Bb1 {[%emt 0:01:26]
White is more active.} Nd5 {[%emt 0:00:38]} 28. Re1 {[%emt 0:00:00]} Rh6 {
[%emt 0:04:25]} 29. f4 {[%emt 0:06:24]} Bf6 {[%emt 0:01:45]} 30. Ba2 {[%emt 0:
00:49]} Rh8 {[%emt 0:02:07]} (30... Kg8 {keeps fighting.} 31. Qa3 Rh8) 31. Qf3
$18 {[%emt 0:02:10]} Kg8 {[%emt 0:01:21]} 32. Rc1 {[%emt 0:00:22][%cal Ye1c1,
Yc1c6,Yc6c8] Ra6 is the strong threat.} Kh7 $2 {[%emt 0:00:19] [#]} (32... Qe6
{is more resistant.} 33. Ra6 (33. Re1 Qd6 $18) 33... Qe4 34. Qxe4 (34. Rcxc6
Kh7 $18) 34... fxe4 35. Raxc6 (35. Rcxc6 Kh7 $18) 35... Kh7) 33. h5 $1 {
[%emt 0:00:34][%cal Yh4h5,Yh5g6]} Rd7 {[%emt 0:01:47]} 34. Ra6 {[%emt 0:01:08]}
Nb4 {[%emt 0:01:38]} 35. Raxc6 {[%emt 0:00:46]} Nxc6 {[%emt 0:00:15]} (35...
Qe7 $142 36. Re6 Qd8) 36. Rxc6 {[%emt 0:00:02]} Qe7 {[%emt 0:00:40]} 37. Bb1 {
[%emt 0:00:56] Threatens to win with hxg6+.} Bxd4 {[%emt 0:01:44]} (37... Rd6
$18 38. Rc5 Qa7 39. hxg6+ Kxg6 40. Rxb5 Qa6 41. Bxf5+ Kf7 42. Qb3+ Kf8) 38.
hxg6+ {[%emt 0:00:31] White mates.} Kg8 {[%emt 0:00:00]} 39. Rc8+ {[%emt 0:00:
29] [#] Skewer} Rd8 {[%emt 0:00:02]} 40. Qd5+ {[%emt 0:00:06] Weighted Error
Value: White=0.13 (very precise) /Black=0.49} 1-0

[Event "44th Chess Olympiad Open 2022"]
[Site "Chennai"]
[Date "2022.08.06"]
[Round "8.20"]
[White "Docx, Stefan"]
[Black "McShane, Luke J"]
[Result "1/2-1/2"]
[WhiteElo "2434"]
[BlackElo "2649"]
[Annotator "TA"]
[PlyCount "94"]
[EventDate "2022.??.??"]
[TimeControl "60"]

{[%evp 14,94,37,29,39,34,60,60,95,82,83,75,77,79,91,56,66,41,35,33,97,86,91,31,
27,13,16,27,23,17,25,-14,-14,-15,-8,-14,-10,-9,-12,-41,-27,-54,0,0,0,0,0,0,17,
0,0,-3,0,0,0,0,0,0,0,0,0,0,0,0,0,0,0,0,0,0,0,0,0,0,0,0,0,0,0,0,0,0,0]} 1. d4 {
[%emt 0:00:04] Alterman,B} Nf6 {[%emt 0:00:06]} 2. c4 {[%emt 0:00:10]} e6 {
[%emt 0:00:03]} 3. Nc3 {[%emt 0:00:59]} Bb4 {[%emt 0:00:06]} 4. Qc2 {[%emt 0:
00:00]} d5 {[%emt 0:00:05]} 5. cxd5 {[%emt 0:00:19]} Qxd5 {[%emt 0:00:06]} 6.
Nf3 {[%emt 0:00:13][%cal Yg1f3,Yf3d2,Yd2c4]} Qf5 {[%emt 0:00:17]} 7. Qb3 {
[%emt 0:00:41] is now debated instead of 7.Qxf5.} c5 {[%emt 0:06:33]} 8. a3 {
[%emt 0:03:32]} Ba5 {[%emt 0:08:14] E34: Nimzo-Indian: Classical: 4...d5.} 9.
Qc4 {[%emt 0:02:23] Strongly threatening b4.} Nc6 {[%emt 0:19:27] Against b4}
10. dxc5 {[%emt 0:27:25]} Qd5 {[%emt 0:04:58] [#] White is slightly better.}
11. Nd2 {[%emt 0:07:41]} Qxc4 {[%emt 0:01:45]} 12. Nxc4 {[%emt 0:00:05]} Bxc3+
{[%emt 0:00:21]} 13. bxc3 {[%emt 0:00:08]} Ne4 {[%emt 0:04:47] [#]} 14. a4 $146
{[%emt 0:04:53]} ({Predecessor:} 14. g3 Nxc5 15. Be3 Nb3 16. Rb1 Nca5 17. Nxa5
Nxa5 18. Bg2 f6 19. O-O Kd8 20. Rb5 {1-0 (40) Alterman,B (2585)-Yudasin,L 
(2635) Israel 1996 CBM 052 Extra [Alterman,B]}) 14... e5 {[%emt 0:03:53]} 15.
g3 {[%emt 0:01:15]} Be6 $1 {[%emt 0:02:14]} 16. Bg2 {[%emt 0:02:06]} Bxc4 {
[%emt 0:01:07]} ({Black should try} 16... Nxc5 $14 17. Bxc6+ bxc6 18. Nxe5 f6)
17. Bxe4 $16 {[%emt 0:00:09]} O-O-O {[%emt 0:00:05]} 18. Bxc6 {[%emt 0:05:30]}
({Better is} 18. f3 $16) 18... bxc6 $14 {[%emt 0:00:06]} 19. f3 {[%emt 0:00:08]
} e4 {[%emt 0:18:01]} 20. f4 {[%emt 0:08:23]} e3 {[%emt 0:00:58]} 21. Rb1 {
[%emt 0:10:49]} Rd7 {[%emt 0:04:39]} 22. Rb2 {[%emt 0:01:38]} Re8 {[%emt 0:00:
00] Black has compensation.} 23. Rf1 {[%emt 0:01:55]} f5 {[%emt 0:00:00]} 24.
Rb4 {[%emt 0:04:03]} Bd5 {[%emt 0:02:59]} 25. a5 {[%emt 0:02:28]} Rb7 {[%emt 0:
04:11]} 26. Rg1 {[%emt 0:00:37]} h5 {[%emt 0:00:23]} 27. h3 {[%emt 0:08:00]}
Rb5 {[%emt 0:00:44]} (27... Rxb4 $15 28. cxb4 Re4) 28. Rxb5 $11 {[%emt 0:01:47]
The position is equal.} cxb5 {[%emt 0:00:01] Endgame KRB-KRB} 29. g4 {[%emt 0:
01:25]} fxg4 {[%emt 0:05:03]} 30. Rg3 {[%emt 0:00:17]} Be6 {[%emt 0:01:24]} 31.
Rxe3 {[%emt 0:02:44]} gxh3 {[%emt 0:00:00] [#] ...h2 is the strong threat.} 32.
Kf2 {[%emt 0:00:09]} Kd7 {[%emt 0:00:00]} 33. Re5 {[%emt 0:01:18]} g6 {[%emt 0:
00:31]} 34. e4 {[%emt 0:00:27]} Kc6 {[%emt 0:00:52]} 35. Kg3 {[%emt 0:01:33]}
Bd7 {[%emt 0:00:26]} 36. Rxe8 {[%emt 0:00:21]} Bxe8 {[%emt 0:00:01]} 37. Kxh3 {
[%emt 0:00:56] And now Be3 would win.} Kxc5 {[%emt 0:00:19] KB-KB} 38. Be3+ {
[%emt 0:00:22]} Kc4 {[%emt 0:00:00]} 39. Bxa7 {[%emt 0:00:33]} Kxc3 {[%emt 0:
00:07]} 40. a6 {[%emt 0:01:04]} b4 {[%emt 0:01:50]} 41. Bc5 {[%emt 0:07:16]} b3
{[%emt 0:18:06] ( -> ...b2)} 42. Ba3 {[%emt 0:00:10]} Kd4 {[%emt 0:00:31]} 43.
a7 {[%emt 0:00:31]} Bc6 {[%emt 0:00:09]} 44. f5 {[%emt 0:00:29]} gxf5 {[%emt 0:
00:22]} (44... Kxe4 $2 45. f6 Bd5 46. f7 Bxf7 47. a8=Q+ $18) (44... Bxe4 45.
fxg6 Bd5 46. g7 Be6+ 47. Kh4 $18) 45. exf5 {[%emt 0:00:13] Intending f6 and
mate.} Ke5 {[%emt 0:00:04]} 46. Kh4 {[%emt 0:00:33] aiming for Kg5.} Kxf5 {
[%emt 0:00:06]} 47. Kxh5 {[%emt 0:00:09]} Ke5 {[%emt 0:00:45] Weighted Error
Value: White=0.07 (flawless) /Black=0.06 (flawless)} 1/2-1/2

[Event "44th Chess Olympiad Open 2022"]
[Site "Chennai"]
[Date "2022.08.06"]
[Round "8.20"]
[White "Hovhannisyan, Mher"]
[Black "Haria, Ravi"]
[Result "1/2-1/2"]
[WhiteElo "2420"]
[BlackElo "2505"]
[Annotator "TA"]
[PlyCount "75"]
[EventDate "2022.??.??"]
[TimeControl "60"]

{[%evp 21,75,0,0,0,0,-13,0,0,0,-12,-13,-18,-12,-24,-1,-38,-43,-40,-39,-62,-70,
-86,-57,-71,-72,-77,-79,-90,-8,-10,0,0,0,-11,-9,-14,-19,-19,-25,-56,0,-89,42,
42,41,30,58,20,47,47,158,50,59,0,0,0]} 1. Nf3 {[%emt 0:00:03]} Nf6 {[%emt 0:00:
00]} 2. g3 {[%emt 0:00:16]} d5 {[%emt 0:00:44]} 3. Bg2 {[%emt 0:00:07]} e6 {
[%emt 0:00:34]} 4. O-O {[%emt 0:02:27]} Be7 {[%emt 0:00:11]} 5. d4 {[%emt 0:00:
00]} O-O {[%emt 0:02:34]} 6. Nbd2 {[%emt 0:01:28]} b6 {[%emt 0:11:17]} 7. c4 {
[%emt 0:01:49]} Bb7 {[%emt 0:04:14]} 8. b3 {[%emt 0:04:01]} c5 {[%emt 0:00:00]}
9. Bb2 {[%emt 0:05:12]} Nbd7 {[%emt 0:01:09]} 10. e3 {[%emt 0:03:50]} Rc8 {
[%emt 0:02:23]} 11. Rc1 {[%emt 0:00:24]} Rc7 {[%emt 0:04:58]} 12. Qe2 {[%emt 0:
00:00] E17: Queen's Indian: 4 g3 Bb7 5 Bg2 Be7.} Qa8 {[%emt 0:22:54]} 13. Ne5 {
[%emt 0:17:33]} dxc4 {[%emt 0:06:28]} (13... cxd4 {is interesting.} 14. exd4
dxc4 15. Bxb7 Qxb7 16. Nxd7 Rxd7 17. bxc4 Rc8) 14. Bxb7 {[%emt 0:00:00]} Qxb7 {
[%emt 0:03:49]} 15. Nxd7 {[%emt 0:03:55]} Nxd7 {[%emt 0:25:42]} 16. Nxc4 {
[%emt 0:19:17]} cxd4 {[%emt 0:01:02]} 17. Bxd4 {[%emt 0:07:28]} Rfc8 {[%emt 0:
00:00]} 18. Qg4 {[%emt 0:07:18][%csl Gd4][%cal Rg4g7] [#]} e5 $146 {[%emt 0:00:
00] Strongly threatening ...Nf6.} ({Predecessor:} 18... g6 19. Rcd1 b5 20. Ne5
Nf6 21. Qe2 Ne4 22. a4 f6 23. Nf3 e5 24. Ba1 a6 25. axb5 axb5 {½-½ (52)
Smirnov,V (2392)-Johansen,D (2453) Sydney 2010}) 19. Bb2 {[%emt 0:01:22]} b5 {
[%emt 0:01:30]} 20. Nd2 {[%emt 0:00:05]} Rc2 {[%emt 0:02:10]} 21. Qe4 {[%emt 0:
00:00]} Qxe4 {[%emt 0:00:28]} 22. Nxe4 {[%emt 0:00:03]} f5 {[%emt 0:00:25]} 23.
Rxc2 {[%emt 0:00:14]} Rxc2 {[%emt 0:00:06]} 24. Rd1 {[%emt 0:00:06]} Nf8 {
[%emt 0:07:54]} ({Much weaker is} 24... Rxb2 $6 25. Rxd7 Bf8 26. Ng5 (26. Nc3
b4 $15) 26... Rxa2 27. Rb7 $11) (24... Nb6 $17 25. Rd2 Rxb2 26. Rxb2 fxe4) 25.
Rd2 $11 {[%emt 0:00:08]} Rxb2 {[%emt 0:00:06]} 26. Rxb2 {[%emt 0:00:07] And
now Nc3 would win.} fxe4 {[%emt 0:00:02]} 27. Rc2 {[%emt 0:01:05]} Ne6 {
[%emt 0:00:14] Inhibits Rc7.} 28. Rc8+ {[%emt 0:02:17]} Kf7 {[%emt 0:00:02]}
29. Rb8 $1 {[%emt 0:01:14]} a6 {[%emt 0:00:53]} 30. Rb6 {[%emt 0:00:39]} Nc5 {
[%emt 0:00:17]} (30... Nc7 $1 $15) 31. b4 {[%emt 0:00:30] [#]} (31. Kg2 $11 {
keeps the balance.}) 31... Nd3 {[%emt 0:00:56]} (31... Na4 $1 $17 {[%cal Ra4b6]
} 32. Rxa6 Bxb4) 32. a3 $14 {[%emt 0:00:35]} Nb2 {[%emt 0:01:33]} 33. Rxa6 {
[%emt 0:00:10]} Nc4 {[%emt 0:00:17] Prevents Rb6.} 34. Kf1 {[%emt 0:00:25]
White has compensation.} h5 {[%emt 0:00:37]} 35. h4 {[%emt 0:00:19]} g5 {
[%emt 0:01:03] [#]} ({Black should try} 35... Nd6 $14) 36. hxg5 {[%emt 0:00:00]
} (36. g4 $1 $16 {[%cal Rg4h5]}) 36... Bxg5 {[%emt 0:00:04]} 37. Ke2 {[%emt 0:
00:07]} ({Better is} 37. a4 $14 bxa4 38. Rxa4) 37... h4 $11 {[%emt 0:00:00]}
38. gxh4 {[%emt 0:00:42] Weighted Error Value: White=0.22 (precise) / Black=0.
27 (precise)} 1/2-1/2